[Event "Menorca Open-A 2022"]
[Site "Menorca"]
[Date "2022.04.23"]
[Round "6.7"]
[White "Baskin, Robert"]
[Black "Sethuraman, S.P."]
[Result "0-1"]
[ECO "B90"]
[WhiteElo "2393"]
[BlackElo "2610"]
[Annotator "TA"]
[PlyCount "66"]
[EventDate "2022.04.20"]
[EventType "swiss"]
[EventCountry "ESP"]
[SourceTitle "playchess.com"]
[Source "ChessBase"]
[SourceQuality "1"]
[TimeControl "5400+30"]

{[%evp 17,66,20,24,24,33,27,37,16,41,39,47,45,49,40,45,-42,-35,-37,0,0,0,0,0,-51,-46,-139,-141,-154,-159,-176,-179,-250,-229,-238,-224,-231,-199,-302,-281,-286,-231,-220,0,-288,-286,-283,-286,-577,-561,-725,-708]} 1. e4 {[%emt 0:03:57]} c5 {[%emt 0:00:08]} 2. Nf3 {[%emt 0:00:06]} d6 {[%emt 0:00:04]} 3. d4 {[%emt 0:00:09]} cxd4 {[%emt 0:00:07]} 4. Nxd4 {[%emt 0:00:03]} Nf6 {[%emt 0:00:05]} 5. Nc3 {[%emt 0:00:04]} a6 {[%emt 0:00:05]} 6. Be3 {[%emt 0:00:26]} e5 {[%emt 0:00:07]} 7. Nb3 {[%emt 0:00:05]} Be7 {[%emt 0:00:49]} 8. f3 {[%emt 0:00:15]} Be6 {[%emt 0:00:08]} 9. Qd2 {[%emt 0:00:16]} h5 {[%emt 0:00:07]} 10. Nd5 {[%emt 0:00:36] B90: Sicilian Najdorf: Unusual White 6th moves, 6 Be3 Ng4 and 6 Be3 e5.} Bxd5 {[%emt 0:00:09]} 11. exd5 {[%emt 0:00:10]} Nbd7 {[%emt 0:00:02]} 12. O-O-O {[%emt 0:02:49] White is slightly better.} Qc7 {[%emt 0:00:15]} 13. c4 {[%emt 0:07:06]} a5 {[%emt 0:00:11][%cal Ba6a5,Ba5a4][%mdl 32]} 14. Kb1 {[%emt 0:01:38]} O-O {[%emt 0:00:06]} 15. Be2 {[%emt 0:02:05]} Rfc8 {[%emt 0:03:20] [#]} 16. g4 $146 {[%emt 0:05:29]} (16. Rc1 $14) ({Predecessor:} 16. a3 a4 17. Na1 Bd8 18. g4 Nc5 19. g5 Nfd7 20. Rhf1 g6 21. f4 exf4 22. Bxf4 {0-1 (32) Sunilduth Lyna,N (2647)-Ter Sahakyan,S (2607) Tsaghkadzor 2021}) 16... a4 $15 {[%emt 0:09:45]} 17. Na1 {[%emt 0:02:02]} e4 {[%emt 0:01:41] [#] Strongly threatening ...exf3.} 18. g5 {[%emt 0:10:56]} exf3 {[%emt 0:01:11]} 19. Bxf3 {[%emt 0:00:05]} Ng4 $36 {[%emt 0:01:15][%mdl 2048] Black is more active.} 20. Bxg4 {[%emt 0:06:10]} ({White should try} 20. Bd4 $1 $11) 20... hxg4 {[%emt 0:00:12]} 21. Rc1 {[%emt 0:00:02]} (21. Nc2 $15) 21... Ne5 $17 {[%emt 0:01:22]} 22. Rhf1 {[%emt 0:01:57]} Qd8 {[%emt 0:10:15]} 23. g6 {[%emt 0:19:07]} Nxg6 {[%emt 0:02:49]} 24. Bd4 {[%emt 0:00:08]} (24. Qe2 $142) 24... Bg5 $19 {[%emt 0:01:37]} 25. Qf2 {[%emt 0:01:47]} Qd7 {[%emt 0:01:36]} 26. Rc3 {[%emt 0:00:54]} Re8 {[%emt 0:00:47][%cal Bc8e8,Be8e4,Be4f4][%mdl 32] ...Re4 is the strong threat.} 27. Nc2 {[%emt 0:01:35]} (27. h3 $142) 27... Re4 {[%emt 0:00:49]} 28. Be3 {[%emt 0:04:01]} Bf6 {[%emt 0:04:07]} 29. Bd4 {[%emt 0:01:21]} Bg5 {[%emt 0:10:50]} 30. Be3 $1 {[%emt 0:00:41]} Bxe3 {[%emt 0:03:52]} 31. Nxe3 {[%emt 0:00:06]} Rae8 {[%emt 0:00:03] Threatens to win with ...Rf4.} 32. a3 $2 {[%emt 0:04:07]} (32. Rd1) 32... Rf4 {[%emt 0:02:44]} 33. Qg1 {[%emt 0:01:43] [#]} Rxe3 $1 {[%emt 0:00:29][%mdl 512] Weighted Error Value: White=0.40/Black=0.16 (very precise)} 0-1

[Event "Menorca Open-A 2022"]
[Site "Menorca"]
[Date "2022.04.23"]
[Round "6.8"]
[White "Romanishin, Oleg M"]
[Black "Erigaisi Arjun"]
[Result "0-1"]
[ECO "E11"]
[WhiteElo "2415"]
[BlackElo "2675"]
[Annotator "TA"]
[PlyCount "102"]
[EventDate "2022.04.20"]
[EventType "swiss"]
[EventCountry "ESP"]
[SourceTitle "playchess.com"]
[Source "ChessBase"]
[SourceQuality "1"]
[TimeControl "5400+30"]

{[%evp 12,102,26,8,40,30,27,25,18,23,25,20,19,26,37,23,41,20,28,0,0,0,0,0,35,37,21,14,42,16,41,-43,-44,-43,-19,-93,-94,-77,-77,-76,-80,-93,-77,-91,-46,-122,-131,-160,-150,-162,-130,-212,-113,-132,-116,-161,-141,-168,-167,-165,-165,-164,-67,-71,-67,-75,-76,-320,-311,-288,-218,-217,-192,-443,-429,-509,-502,-502,-494,-494,-494,-494,-471,-583,-431,-12843,-2263,-149,-29950,-5107,-4614,-5085,-4028]} 1. d4 {[%emt 0:00:05]} Nf6 {[%emt 0:00:33]} 2. Nf3 {[%emt 0:00:02]} d5 {[%emt 0:00:07]} 3. c4 {[%emt 0:00:08]} e6 {[%emt 0:00:04]} 4. g3 {[%emt 0:00:04]} Bb4+ {[%emt 0:00:05]} 5. Bd2 {[%emt 0:00:04]} a5 {[%emt 0:00:05]} 6. Qc2 {[%emt 0:06:00]} O-O {[%emt 0:00:18]} 7. Bg2 {[%emt 0:00:10]} c5 {[%emt 0:00:16] E11: Bogo-Indian.} 8. dxc5 {[%emt 0:04:48]} d4 {[%emt 0:00:21]} 9. Bxb4 {[%emt 0:21:08]} axb4 {[%emt 0:00:13] White has an edge.} 10. Ne5 {[%emt 0:01:38] Inhibits Nc6.} Qc7 {[%emt 0:00:06]} 11. Nd3 {[%emt 0:00:13]} Na6 {[%emt 0:00:06]} 12. O-O {[%emt 0:02:13]} e5 {[%emt 0:00:05]} 13. Nd2 {[%emt 0:04:21] Prevents e4.} Bf5 {[%emt 0:02:05]} 14. Nb3 {[%emt 0:02:52] [#]} Nd7 $146 {[%emt 0:13:51]} ({Predecessor:} 14... Rfd8 15. Qd2 Ne4 16. Qe1 Ra7 17. Nxb4 Nxb4 18. Qxb4 Rc8 19. Qb6 Qxb6 20. cxb6 Ra6 21. Bxe4 Bxe4 {1-0 (34) Vazquez,F (2199)-Melian,J (1978) Chess.com INT 2021}) 15. c6 {[%emt 0:32:46]} bxc6 {[%emt 0:01:35][%cal Oa6c5]} 16. c5 {[%emt 0:00:04]} Nf6 {[%emt 0:20:47]} 17. Qd2 {[%emt 0:01:23]} Be4 {[%emt 0:00:46]} 18. Bxe4 {[%emt 0:03:51]} Nxe4 {[%emt 0:00:06]} 19. Qc2 {[%emt 0:00:02]} Qe7 {[%emt 0:13:22]} 20. Qc4 {[%emt 0:03:16]} Nf6 {[%emt 0:00:36]} 21. Nxb4 {[%emt 0:03:01]} (21. a3 $14) 21... Nxb4 $15 {[%emt 0:00:30]} 22. Qxb4 {[%emt 0:00:02]} Qe6 {[%emt 0:01:24]} (22... Qd7 $5 {[%cal Rd7h3]}) 23. Nd2 {[%emt 0:04:07]} (23. Qd2 $1 $11) 23... Rfb8 $36 {[%emt 0:03:12][%mdl 2112] Deflection. Black is in control.} (23... Rxa2 $6 24. Rxa2 Qxa2 25. Rc1 $11) 24. Qc4 {[%emt 0:00:26]} Rxb2 {[%emt 0:00:07]} 25. Qxe6 {[%emt 0:00:45]} fxe6 {[%emt 0:00:06]} 26. Nc4 {[%emt 0:03:14]} Rxe2 {[%emt 0:00:49]} 27. a4 {[%emt 0:00:05]} Ne4 {[%emt 0:09:50]} 28. Rfe1 {[%emt 0:03:13] [#]} (28. Rae1 $1 $15 Rxe1 29. Rxe1 Nxc5 30. Rxe5 Nxa4 31. Rxe6) 28... Rxa4 $3 {[%emt 0:03:34][%mdl 512] And now ...Rxe1+ would win. &Nero is much more active.} 29. Rxe2 {[%emt 0:00:02]} (29. Nxe5 Nxg3) 29... Rxa1+ {[%emt 0:00:06][%mdl 4096] Endgame KRN-KRN} 30. Kg2 {[%emt 0:00:11]} Nxc5 {[%emt 0:00:12]} 31. Rxe5 {[%emt 0:00:15] [#]} (31. Nxe5 $17 Rc1 32. Rd2) 31... Nd3 {[%emt 0:03:25]} (31... Rc1 $1 $19 32. Rxc5 d3) 32. Rxe6 {[%emt 0:00:11]} c5 $1 {[%emt 0:00:24]} 33. Re8+ {[%emt 0:00:43]} Kf7 {[%emt 0:00:05]} 34. Nd6+ {[%emt 0:00:06]} Kf6 {[%emt 0:00:04]} 35. Ne4+ {[%emt 0:01:21]} Kg6 $1 {[%emt 0:00:05]} 36. g4 {[%emt 0:02:37]} h6 {[%emt 0:00:43]} (36... c4 $19 {Strongly threatening ...c3.} 37. Re6+ Kf7 38. Ng5+ Kf8) 37. h4 $1 $15 {[%emt 0:01:12]} c4 {[%emt 0:01:27]} 38. h5+ {[%emt 0:00:29]} Kh7 {[%emt 0:00:04]} 39. Re7 $2 {[%emt 0:00:57]} (39. g5 $17 hxg5 40. Rc8) 39... Nf4+ $19 {[%emt 0:01:04]} 40. Kf3 {[%emt 0:00:41] Nf6+ would kill now.} Nd5 {[%emt 0:00:05] Prevents Nf6+.} 41. Rd7 {[%emt 0:00:35]} Ra3+ {[%emt 0:01:01]} 42. Kg2 $2 {[%emt 0:00:10] [#]} (42. Ke2 {was the only chance.} d3+ 43. Kf1) 42... Ra5 $1 {[%emt 0:00:55]} ({Wrong is} 42... Nf4+ $2 43. Kh2 Rh3+ 44. Kg1 $19) 43. g5 {[%emt 0:01:43]} hxg5 {[%emt 0:00:45]} 44. Nxg5+ {[%emt 0:00:24]} Kh6 {[%emt 0:00:05]} 45. Ne6 {[%emt 0:00:10]} d3 {[%emt 0:06:41][%cal Bd4d3,Bd3d2][%mdl 32] ...d2 is the strong threat.} 46. Rd8 {[%emt 0:00:05][%cal Rd8h8] [#]} Nf6 $1 {[%emt 0:00:05] White must now prevent ...Rd5.} ({Not} 46... Kxh5 47. Rxd5+ Rxd5 48. Nf4+ Kg5 49. Nxd5 $11) 47. Rh8+ {[%emt 0:00:18]} Nh7 {[%emt 0:00:04]} 48. Nf8 {[%emt 0:00:59] [#]} (48. Rd8 $142) 48... d2 $1 {[%emt 0:00:04]} 49. Rxh7+ {[%emt 0:00:16]} Kg5 {[%emt 0:00:05]} 50. Rxg7+ {[%emt 0:00:27]} Kxh5 {[%emt 0:00:07]} 51. Rd7 {[%emt 0:01:17]} c3 {[%emt 0:00:04] Weighted Error Value: White=0.55/Black=0.11 (very precise)} 0-1

[Event "Menorca Open-A 2022"]
[Site "Menorca"]
[Date "2022.04.23"]
[Round "6.9"]
[White "Heimann, Andreas"]
[Black "Alinasab, Mobina"]
[Result "1/2-1/2"]
[WhiteElo "2583"]
[BlackElo "2355"]
[Annotator "TA"]
[PlyCount "19"]
[EventDate "2022.04.20"]
[EventType "swiss"]
[EventCountry "ESP"]
[SourceTitle "playchess.com"]
[Source "ChessBase"]
[SourceQuality "1"]
[TimeControl "5400+30"]

{[%evp 11,19,12,18,17,10,0,-12,-33,-6,-8]} 1. c4 {[%emt 0:00:14]} e6 {[%emt 0:00:47]} 2. g3 {[%emt 0:00:05]} d5 {[%emt 0:00:20]} 3. Bg2 {[%emt 0:00:06]} Nf6 {[%emt 0:00:13]} 4. d4 {[%emt 0:00:37]} dxc4 {[%emt 0:00:16]} 5. Qa4+ {[%emt 0:00:18]} Nbd7 {[%emt 0:01:28]} 6. Qxc4 {[%emt 0:01:35]} a6 {[%emt 0:00:46]} 7. Be3 $1 {[%emt 0:09:24][%mdl 4] is currently scoring better than 7.Qc2. E03: Open Catalan: 5 Qa4+ Nbd7 6 Qxc4.} b5 {[%emt 0:07:43]} 8. Qc2 {[%emt 0:00:57]} Nd5 {[%emt 0:02:08] [#]} 9. Nc3 $146 {[%emt 0:18:07] [#]} ({Predecessor:} 9. Bxd5 exd5 10. Nf3 Nb6 11. Bf4 Bb4+ 12. Nbd2 Nc4 13. O-O O-O 14. Nxc4 dxc4 15. b3 cxb3 16. axb3 Bb7 17. Ng5 g6 18. Rfd1 Qe7 19. Qxc7 Qxc7 {½-½ (19) Schelberg,M (1570)-Vieth,M (1929) GER email 2017}) 9... Nxe3 {[%emt 0:05:12]} 10. fxe3 {[%emt 0:00:08] A rather calm draw.  Weighted Error Value: White=0.09 (flawless) /Black=0.01 (flawless)} 1/2-1/2

[Event "Menorca Open-A 2022"]
[Site "Menorca"]
[Date "2022.04.23"]
[Round "6.10"]
[White "Schenderowitsch, Michael"]
[Black "Alonso Rosell, Alvar"]
[Result "0-1"]
[ECO "E10"]
[WhiteElo "2335"]
[BlackElo "2564"]
[Annotator "TA"]
[PlyCount "68"]
[EventDate "2022.04.20"]
[EventType "swiss"]
[EventCountry "ESP"]
[SourceTitle "playchess.com"]
[Source "ChessBase"]
[SourceQuality "1"]
[TimeControl "5400+30"]

{[%evp 9,68,41,58,12,20,0,29,-22,-18,-52,-48,-39,-33,-53,-47,-51,-52,-55,-47,-58,-45,-50,-58,-57,-53,-54,-50,-56,-40,-31,-33,-88,-88,-131,-114,-129,-122,-144,-148,-171,-156,-164,-135,-123,-77,-624,-596,-682,-435,-712,-621,-612,-586,-1774,-1773,-29981,-29982,-29976,-1740,-1412,-1276]} 1. d4 {[%emt 0:00:02]} Nf6 {[%emt 0:00:03]} 2. c4 {[%emt 0:00:05]} e6 {[%emt 0:00:03]} 3. Nf3 {[%emt 0:00:04]} c5 {[%emt 0:00:03]} 4. d5 {[%emt 0:00:10]} b5 {[%emt 0:00:04]} 5. Bg5 {[%emt 0:00:24]} d6 {[%emt 0:44:46]} 6. e4 {[%emt 0:07:28] E10: Blumenfeld Gambit.} (6. cxb5 $14 {feels stronger.} Qa5+ 7. Bd2) 6... Be7 $11 {[%emt 0:06:11]} 7. Nbd2 {[%emt 0:08:34]} b4 {[%emt 0:11:03]} 8. Bxf6 {[%emt 0:06:36]} (8. h3 $142) 8... Bxf6 {[%emt 0:03:10]} 9. Qc2 {[%emt 0:00:33][%cal Oe4e5]} Nd7 {[%emt 0:12:22] [#]} 10. Bd3 $146 {[%emt 0:01:52]} ({Predecessor:} 10. Be2 a5 11. O-O O-O 12. Rad1 Qe7 13. Kh1 g6 14. Ne1 Nb6 15. Bd3 Bg7 16. f4 {½-½ (35) Naumkin,I (2405)-David,A (2561) Cap d'Agde 2018}) 10... g6 {[%emt 0:02:14]} 11. O-O {[%emt 0:00:29]} O-O {[%emt 0:01:40]} 12. Rfe1 {[%emt 0:05:08]} Ne5 {[%emt 0:04:25]} 13. Bf1 {[%emt 0:03:36]} a5 {[%emt 0:03:30]} 14. Rad1 $1 {[%emt 0:02:13]} exd5 {[%emt 0:01:01]} 15. Nxe5 {[%emt 0:01:45]} Bxe5 {[%emt 0:00:01]} 16. cxd5 {[%emt 0:00:45]} Qf6 {[%emt 0:01:04]} ({Much less strong is} 16... Qh4 17. Nf3 Qf6 18. Nxe5 Qxe5 19. Qd2 $14) 17. Rb1 {[%emt 0:04:16]} a4 {[%emt 0:01:09]} 18. Nf3 {[%emt 0:01:17]} a3 {[%emt 0:00:25][%cal Re5b2]} 19. Nxe5 {[%emt 0:00:37]} Qxe5 {[%emt 0:00:02]} 20. b3 {[%emt 0:00:51]} (20. Qd2 $1 $15) 20... f5 $17 {[%emt 0:00:48]} 21. exf5 {[%emt 0:02:59] [#]} Bxf5 $1 {[%emt 0:00:30]} 22. Qd2 {[%emt 0:01:59]} Qf6 {[%emt 0:00:35] &Nero is much more active.} 23. Rbd1 {[%emt 0:03:49]} Rae8 {[%emt 0:00:43]} 24. Bb5 {[%emt 0:01:46] [#]} Rxe1+ {[%emt 0:02:26]} 25. Rxe1 {[%emt 0:06:06]} Rf7 {[%emt 0:00:14]} 26. Qe3 {[%emt 0:13:36]} Qb2 {[%emt 0:01:10]} 27. h3 $2 {[%emt 0:11:01][%mdl 8192] Loses the game.} (27. f3 $17) 27... Qxa2 $19 {[%emt 0:00:29]} 28. g4 {[%emt 0:00:56]} Bc8 {[%emt 0:00:22] Hoping for ...Qb2.} 29. Qg3 {[%emt 0:01:24]} (29. Kg2 $142 Kg7 30. Bc4) 29... Qb2 {[%emt 0:01:25] And now ...a2 would win.} 30. Re8+ {[%emt 0:11:56]} Kg7 {[%emt 0:00:01]} 31. g5 {[%emt 0:02:51] [#]} a2 $1 {[%emt 0:00:39]} 32. Qh4 {[%emt 0:00:45]} (32. Re1 a1=Q) 32... a1=Q+ {[%emt 0:00:05]} 33. Bf1 {[%emt 0:00:29] [#]} Qxf2+ $3 {[%emt 0:00:19]} 34. Qxf2 {[%emt 0:00:04]} Rxf2 {[%emt 0:00:04] Weighted Error Value: White=0.78/Black=0.41} 0-1

[Event "Menorca Open-A 2022"]
[Site "Menorca"]
[Date "2022.04.23"]
[Round "6.11"]
[White "Barzen, Pascal"]
[Black "Marin Ferragut, Pau"]
[Result "1-0"]
[ECO "B33"]
[WhiteElo "2324"]
[BlackElo "2120"]
[Annotator "TA"]
[PlyCount "113"]
[EventDate "2022.04.20"]
[EventType "swiss"]
[EventCountry "ESP"]
[SourceTitle "playchess.com"]
[Source "ChessBase"]
[SourceQuality "1"]
[TimeControl "5400+30"]

{[%evp 16,113,12,17,25,16,33,31,28,21,15,12,13,22,24,17,37,10,39,31,46,38,41,48,46,44,54,54,48,46,44,44,43,45,42,46,54,58,70,74,100,89,100,98,117,122,135,135,173,173,205,230,225,214,226,194,224,238,226,241,483,479,415,325,705,639,428,434,403,401,425,393,743,739,704,691,785,596,587,600,656,650,800,770,870,893,1688,427,2035,2021,29975,12806,29987,29988,29990,29991,29992,29993,29995,29996]} 1. e4 {[%emt 1:31:00]} c5 {[%emt 1:31:00]} 2. Nf3 {[%emt 0:00:30]} Nc6 {[%emt 0:00:30]} 3. d4 {[%emt 0:00:30]} cxd4 {[%emt 0:00:30]} 4. Nxd4 {[%emt 0:00:30]} Nf6 {[%emt 0:00:30]} 5. Nc3 {[%emt 0:00:30]} e5 {[%emt 0:00:30]} 6. Ndb5 {[%emt 0:00:30]} d6 {[%emt 0:00:30]} 7. a4 {[%emt 0:00:30]} a6 {[%emt 0:00:30]} 8. Na3 {[%emt 0:00:30]} Be7 {[%emt 0:00:30]} 9. Bg5 $1 {[%emt 0:00:30] 9.Bg5 scores better than 9.Bc4.} O-O {[%emt 0:00:30][%cal Of6e4] B33: Sicilian: Pelikan and Sveshnikov Variations.} 10. Bxf6 {[%emt 0:00:30]} Bxf6 {[%emt 0:00:30]} 11. Bc4 {[%emt 0:00:30]} Bg5 {[%emt 0:00:30] White is slightly better. is the legacy move (11...Be6).} 12. O-O {[%emt 0:00:30]} Kh8 {[%emt 0:00:30]} 13. Nd5 {[%emt 0:00:30]} f5 {[%emt 0:00:30]} 14. exf5 {[%emt 0:00:30]} Bxf5 {[%emt 0:00:30]} 15. c3 {[%emt 0:00:30]} Rc8 {[%emt 0:00:30] [#]} 16. Nc2 $146 {[%emt 0:00:30]} ({Predecessor:} 16. Qe2 Qe8 17. f3 Qg6 18. Rad1 Qh6 19. Rfe1 Rce8 20. Bd3 Bc8 21. Be4 Bh4 22. g3 {1-0 (59) Balazs,L (2079)-Teglas,B (2206) Slovakia 2017}) 16... Ne7 {[%emt 0:00:30]} 17. Nce3 {[%emt 0:00:30] Pair of Knights!} Be4 {[%emt 0:00:30][%cal Oc8c4] [#] And now ...Rxc4! would win.} 18. Nxe7 {[%emt 0:00:30]} Qxe7 {[%emt 0:00:30]} 19. Qg4 {[%emt 0:00:30]} Bxe3 {[%emt 0:00:30]} 20. Qxe4 {[%emt 0:00:30]} Ba7 {[%emt 0:00:30] Strongly threatening ...Rf4.} 21. g3 {[%emt 0:00:30] Prevents Rf4.} ({But not} 21. Bd3 g6 $11) 21... Qc7 {[%emt 0:00:30]} 22. Bd3 {[%emt 0:00:30][%csl Gd3][%cal Re4h7]} g6 {[%emt 0:00:30]} 23. Rad1 $40 {[%emt 0:00:30][%mdl 128] White mounts an attack.} Qb6 {[%emt 0:00:30]} 24. Rd2 {[%emt 0:00:30]} Rf6 {[%emt 0:00:30]} 25. Kg2 {[%emt 0:00:30]} Rcf8 {[%emt 0:00:30][%cal Rf6f2]} 26. f3 $1 {[%emt 0:00:30]} Qc7 {[%emt 0:00:30]} 27. Qd5 {[%emt 0:00:30] White now steadily converts the win.} a5 {[%emt 0:00:30]} 28. Be4 {[%emt 0:00:30] White is more active.} R8f7 {[%emt 0:00:30]} 29. Rfd1 {[%emt 0:00:30]} Bc5 {[%emt 0:00:30]} 30. h4 {[%emt 0:00:30]} Kg7 {[%emt 0:00:30]} 31. Rc2 {[%emt 0:00:30]} Qb6 {[%emt 0:00:30] [#] Against b4} 32. Rb1 $1 {[%emt 0:00:30]} Qd8 {[%emt 0:00:30]} 33. b4 {[%emt 0:00:30]} axb4 {[%emt 0:00:30]} 34. cxb4 {[%emt 0:00:30]} Be3 {[%emt 0:00:30]} 35. a5 {[%emt 0:00:30]} Rd7 {[%emt 0:00:30]} 36. Re1 {[%emt 0:00:30]} Bh6 {[%emt 0:00:30]} 37. h5 {[%emt 0:00:30]} Rff7 $2 {[%emt 0:00:30]} (37... gxh5 {was necessary.} 38. Rh1 Be3 39. Rxh5 (39. Re2 Bd4 $16) 39... h6) 38. hxg6 $18 {[%emt 0:00:30]} hxg6 {[%emt 0:00:30]} 39. Ra1 {[%emt 0:00:30]} Rc7 $2 {[%emt 0:00:30]} (39... Qe7 40. Rc8 (40. Rh1 Rf8 $18) 40... Rc7 41. Rxc7 Qxc7) 40. Rxc7 {[%emt 0:00:30]} Qxc7 {[%emt 0:00:30]} 41. Rd1 {[%emt 0:00:30][%cal Ba1d1,Bd1d6,Bd6d3][%mdl 32]} Be3 {[%emt 0:00:30]} 42. Qxd6 {[%emt 0:00:30]} Qxd6 {[%emt 0:00:30]} 43. Rxd6 {[%emt 0:00:30][%mdl 4096] Endgame KRB-KRB} Rf6 $2 {[%emt 0:00:30]} (43... g5 44. Kh3 Bf2) 44. Rd3 {[%emt 0:00:30]} Bd4 {[%emt 0:00:30]} 45. Bxb7 {[%emt 0:00:30]} Rf7 {[%emt 0:00:30]} 46. Bc6 {[%emt 0:00:30]} Ra7 {[%emt 0:00:30]} 47. f4 {[%emt 0:00:30]} Kf6 {[%emt 0:00:30]} 48. Kf3 {[%emt 0:00:30]} Bb2 {[%emt 0:00:30]} 49. Ke4 {[%emt 0:00:30]} exf4 {[%emt 0:00:30]} 50. gxf4 {[%emt 0:00:30]} Ke6 {[%emt 0:00:30]} 51. Rg3 {[%emt 0:00:30]} (51. b5 $142 {White threatens b6 and mate.} Rxa5 52. b6) 51... Rg7 {[%emt 0:00:30]} (51... g5 $142 52. Rxg5 Bc3) 52. b5 {[%emt 0:00:30][%cal Bb4b5,Bb5b6][%mdl 32]} Kd6 {[%emt 0:00:30]} 53. Rd3+ {[%emt 0:00:30]} Kc7 {[%emt 0:00:30]} 54. Kd5 {[%emt 0:00:30] White mates.} Rf7 {[%emt 0:00:30]} 55. b6+ {[%emt 0:00:30]} Kb8 {[%emt 0:00:30]} 56. a6 {[%emt 0:00:30]} Rf5+ {[%emt 0:00:30]} 57. Ke4 {[%emt 0:00:30] Weighted Error Value: White=0.19 (very precise) /Black=0.23 (precise)} 1-0

[Event "Menorca Open-A 2022"]
[Site "Menorca"]
[Date "2022.04.24"]
[Round "7.1"]
[White "Sethuraman, S.P."]
[Black "Sargsyan, Shant"]
[Result "1/2-1/2"]
[ECO "C84"]
[WhiteElo "2610"]
[BlackElo "2639"]
[Annotator "TA"]
[PlyCount "39"]
[EventDate "2022.04.20"]
[EventType "swiss"]
[EventCountry "ESP"]
[SourceTitle "playchess.com"]
[Source "ChessBase"]
[SourceQuality "1"]
[TimeControl "5400+30"]

{[%evp 13,26,12,18,0,0,0,1,2,2,0,2,5,7,0,0]} 1. e4 {[%emt 1:31:00]} e5 {[%emt 1:31:00]} 2. Nf3 {[%emt 0:00:30]} Nc6 {[%emt 0:00:30]} 3. Bb5 {[%emt 0:00:30][%cal Bf1b5,Bb5a4,Ba4b3,Bb3a2][%mdl 32]} a6 {[%emt 0:00:30]} 4. Ba4 {[%emt 0:00:30]} Nf6 {[%emt 0:00:30]} 5. O-O {[%emt 0:00:30]} Be7 {[%emt 0:00:30]} 6. d3 {[%emt 0:00:30]} b5 {[%emt 0:00:30]} 7. Bb3 {[%emt 0:00:30]} d6 {[%emt 0:00:30] The position is equal.} 8. a3 {[%emt 0:00:30] C84: Closed Ruy Lopez: Unusual White 6th moves.} Na5 {[%emt 0:00:30]} 9. Ba2 {[%emt 0:00:30]} c5 {[%emt 0:00:30]} 10. Nc3 {[%emt 0:00:30]} Be6 {[%emt 0:00:30]} 11. Bg5 {[%emt 0:00:30]} O-O {[%emt 0:00:30]} 12. Bxf6 {[%emt 0:00:30]} Bxf6 {[%emt 0:00:30]} 13. Nd5 {[%emt 0:00:30]} Rc8 {[%emt 0:00:30] [#] Not much happened in this game.  Weighted Error Value: White=0.03 (flawless) /Black=0.00 (flawless)} {Predecessor:} 14. a4 $146 b4 15. Bc4 Nxc4 16. dxc4 Bg5 17. Nxg5 Qxg5 18. Ne3 Rcd8 19. Qf3 g6 20. Rfd1 {1-0 (38) Kulaots,K (2567)-Nyback,T (2586) Puhajarve 2013} 1/2-1/2